[Event "Early-Titled-Tuesday-Blitz-September-05-2023"]
[Site "Chess.com"]
[Date "2023.09.05"]
[Round "8"]
[White "HajiyevKanan"]
[Black "Irina_Mikhaylova"]
[Result "1-0"]
[WhiteElo "2468"]
[BlackElo "2310"]
[TimeControl "180+1"]
[EndTime "9:28:12 PDT"]
[Termination "HajiyevKanan won by resignation"]

1. d4 {[%clk 0:03:00.9]} 1... Nf6 {[%clk 0:02:59.9]} 2. Nf3 {[%clk 0:02:57.4]}
2... g6 {[%clk 0:03:00.2]} 3. b3 {[%clk 0:02:57.9]} 3... Bg7 {[%clk 0:03:00.5]}
4. Bb2 {[%clk 0:02:58.8]} 4... O-O {[%clk 0:03:01.1]} 5. e3 {[%clk 0:02:59]}
5... d5 {[%clk 0:02:54.3]} 6. Be2 {[%clk 0:02:59]} 6... c5 {[%clk 0:02:54.3]} 7.
O-O {[%clk 0:02:59.4]} 7... cxd4 {[%clk 0:02:52.9]} 8. Nxd4 {[%clk 0:02:59.2]}
8... Nc6 {[%clk 0:02:52.6]} 9. c4 {[%clk 0:02:58.5]} 9... Nxd4 {[%clk
0:02:51.1]} 10. Bxd4 {[%clk 0:02:57.3]} 10... dxc4 {[%clk 0:02:39.6]} 11. Bxc4
{[%clk 0:02:55.9]} 11... Bf5 {[%clk 0:02:39]} 12. Nc3 {[%clk 0:02:54.4]} 12...
Ne4 {[%clk 0:02:38.6]} 13. Bxg7 {[%clk 0:02:51.3]} 13... Kxg7 {[%clk 0:02:37.6]}
14. Nxe4 {[%clk 0:02:49.4]} 14... Bxe4 {[%clk 0:02:34.8]} 15. Qg4 {[%clk
0:02:36.7]} 15... Bf5 {[%clk 0:02:32.1]} 16. Qf3 {[%clk 0:02:35.5]} 16... Qb6
{[%clk 0:02:27.1]} 17. Rfd1 {[%clk 0:02:27.5]} 17... Rad8 {[%clk 0:02:26]} 18.
a4 {[%clk 0:02:23]} 18... a5 {[%clk 0:01:57.3]} 19. h4 {[%clk 0:02:15.6]} 19...
Qc6 {[%clk 0:01:36]} 20. Bd5 {[%clk 0:01:57.4]} 20... Qf6 {[%clk 0:01:31.6]} 21.
e4 {[%clk 0:00:53.2]} 21... Be6 {[%clk 0:01:25.4]} 22. Qg3 {[%clk 0:00:46]}
22... Bxd5 {[%clk 0:01:17.4]} 23. exd5 {[%clk 0:00:46.9]} 23... Rxd5 {[%clk
0:01:10]} 24. Rxd5 {[%clk 0:00:47.1]} 24... Qxa1+ {[%clk 0:01:09.7]} 25. Kh2
{[%clk 0:00:48]} 25... Rc8 {[%clk 0:00:49.2]} 26. Rxa5 {[%clk 0:00:43.4]} 26...
Rc1 {[%clk 0:00:48.9]} 27. Qe5+ {[%clk 0:00:43.3]} 27... Qxe5+ {[%clk
0:00:47.7]} 28. Rxe5 {[%clk 0:00:44.2]} 28... Rc7 {[%clk 0:00:44.9]} 29. Rb5
{[%clk 0:00:43]} 29... Kf8 {[%clk 0:00:35.2]} 30. h5 {[%clk 0:00:43.1]} 30...
Ke8 {[%clk 0:00:33.3]} 31. g4 {[%clk 0:00:40.1]} 31... Kd8 {[%clk 0:00:33.5]}
32. Kg3 {[%clk 0:00:40.4]} 32... Kc8 {[%clk 0:00:34]} 33. Kf4 {[%clk 0:00:40.4]}
33... f6 {[%clk 0:00:29.4]} 34. f3 {[%clk 0:00:37]} 34... Rc3 {[%clk 0:00:20.5]}
35. Ke4 {[%clk 0:00:31.4]} 35... Kc7 {[%clk 0:00:20.9]} 36. f4 {[%clk
0:00:28.3]} 36... e6 {[%clk 0:00:19.3]} 37. a5 {[%clk 0:00:23.5]} 37... Rc1
{[%clk 0:00:11.6]} 38. Rb6 {[%clk 0:00:22.2]} 38... Re1+ {[%clk 0:00:10.7]} 39.
Kf3 {[%clk 0:00:22.7]} 39... Kc8 {[%clk 0:00:07.2]} 40. Kf2 {[%clk 0:00:22.4]}
40... Re4 {[%clk 0:00:06.7]} 41. Kf3 {[%clk 0:00:22.4]} 41... Re1 {[%clk
0:00:07]} 42. h6 {[%clk 0:00:21.1]} 42... Kc7 {[%clk 0:00:06.8]} 43. g5 {[%clk
0:00:21.1]} 43... fxg5 {[%clk 0:00:06.2]} 44. fxg5 {[%clk 0:00:22]} 44... e5
{[%clk 0:00:06.6]} 45. b4 {[%clk 0:00:20.3]} 45... e4+ {[%clk 0:00:06.9]} 46.
Kf2 {[%clk 0:00:21]} 46... Rb1 {[%clk 0:00:06.7]} 47. Ke3 {[%clk 0:00:20.8]}
47... Rg1 {[%clk 0:00:06.3]} 48. Rb5 {[%clk 0:00:21.2]} 48... Kc6 {[%clk
0:00:05.9]} 49. Rc5+ {[%clk 0:00:20.9]} 49... Kd6 {[%clk 0:00:05.9]} 50. Kxe4
{[%clk 0:00:21.8]} 50... Re1+ {[%clk 0:00:05.9]} 51. Kf4 {[%clk 0:00:21.9]}
51... Rf1+ {[%clk 0:00:06.1]} 52. Kg4 {[%clk 0:00:22.6]} 52... Rg1+ {[%clk
0:00:06.6]} 53. Kh4 {[%clk 0:00:23.3]} 53... Rh1+ {[%clk 0:00:06.9]} 54. Kg3
{[%clk 0:00:23.9]} 54... Rg1+ {[%clk 0:00:07.5]} 55. Kf2 {[%clk 0:00:24.4]}
55... Rg4 {[%clk 0:00:07.5]} 56. Rb5 {[%clk 0:00:23.8]} 56... Kc6 {[%clk
0:00:06.9]} 57. Rc5+ {[%clk 0:00:24.3]} 57... Kd6 {[%clk 0:00:07.2]} 58. Rb5
{[%clk 0:00:22.6]} 58... Kc6 {[%clk 0:00:07.5]} 59. Rb6+ {[%clk 0:00:23.5]}
59... Kc7 {[%clk 0:00:07.8]} 60. Rf6 {[%clk 0:00:19.5]} 60... Rxg5 {[%clk
0:00:08]} 61. Rf7+ {[%clk 0:00:20.1]} 61... Kc6 {[%clk 0:00:08.6]} 62. Rxh7
{[%clk 0:00:21]} 62... Rh5 {[%clk 0:00:08.9]} 63. Rh8 {[%clk 0:00:20]} 63... Kb5
{[%clk 0:00:07.7]} 64. h7 {[%clk 0:00:13.7]} 64... Kxb4 {[%clk 0:00:07.8]} 65.
a6 {[%clk 0:00:14.5]} 65... bxa6 {[%clk 0:00:06.8]} 66. Rb8+ {[%clk 0:00:14.7]}
66... Ka3 {[%clk 0:00:05.7]} 67. h8=Q {[%clk 0:00:15.6]} 67... Rxh8 {[%clk
0:00:05.5]} 68. Rxh8 {[%clk 0:00:15.6]} 68... a5 {[%clk 0:00:05.1]} 69. Rb8
{[%clk 0:00:15.6]} 69... a4 {[%clk 0:00:05.5]} 70. Ke2 {[%clk 0:00:16]} 70...
Ka2 {[%clk 0:00:06.1]} 71. Kd2 {[%clk 0:00:16.3]} 71... a3 {[%clk 0:00:06.7]}
72. Kc2 {[%clk 0:00:15.8]} 72... Ka1 {[%clk 0:00:07.2]} 73. Ra8 {[%clk
0:00:14.3]} 73... Ka2 {[%clk 0:00:05.1]} 74. Kc3 {[%clk 0:00:13.3]} 74... g5
{[%clk 0:00:05.4]} 75. Kb4 {[%clk 0:00:12.9]} 75... Kb2 {[%clk 0:00:05.8]} 76.
Rxa3 {[%clk 0:00:13.7]} 76... g4 {[%clk 0:00:06.2]} 77. Rg3 {[%clk 0:00:14.6]}
1-0

[Event "Early-Titled-Tuesday-Blitz-September-05-2023"]
[Site "Chess.com"]
[Date "2023.09.05"]
[Round "8"]
[White "ashwanitiwari"]
[Black "emeli_chess"]
[Result "0-1"]
[WhiteElo "2202"]
[BlackElo "2373"]
[TimeControl "180+1"]
[EndTime "9:28:15 PDT"]
[Termination "emeli_chess won by resignation"]

1. b3 {[%clk 0:03:00.9]} 1... e5 {[%clk 0:02:59.5]} 2. Bb2 {[%clk 0:03:00.1]}
2... Nc6 {[%clk 0:02:59.7]} 3. e3 {[%clk 0:03:00.5]} 3... a6 {[%clk 0:03:00]} 4.
d4 {[%clk 0:02:59.7]} 4... exd4 {[%clk 0:02:55.6]} 5. exd4 {[%clk 0:02:59.8]}
5... d5 {[%clk 0:02:55]} 6. Nf3 {[%clk 0:02:59.9]} 6... Bg4 {[%clk 0:02:52.4]}
7. h3 {[%clk 0:02:56.8]} 7... Bh5 {[%clk 0:02:51.3]} 8. Bd3 {[%clk 0:02:56.6]}
8... Nf6 {[%clk 0:02:49.8]} 9. O-O {[%clk 0:02:57.1]} 9... Be7 {[%clk
0:02:49.6]} 10. Nbd2 {[%clk 0:02:56.8]} 10... O-O {[%clk 0:02:49.2]} 11. a3
{[%clk 0:02:55.8]} 11... Bg6 {[%clk 0:02:45.9]} 12. Bxg6 {[%clk 0:02:54.9]}
12... hxg6 {[%clk 0:02:45.5]} 13. Re1 {[%clk 0:02:54.1]} 13... Bd6 {[%clk
0:02:42.2]} 14. c4 {[%clk 0:02:52.9]} 14... b6 {[%clk 0:02:42.2]} 15. Qc2 {[%clk
0:02:50.8]} 15... Qd7 {[%clk 0:02:36.9]} 16. Ne5 {[%clk 0:02:46]} 16... Bxe5
{[%clk 0:02:21.4]} 17. dxe5 {[%clk 0:02:44.9]} 17... Nh7 {[%clk 0:02:14.6]} 18.
cxd5 {[%clk 0:02:39.5]} 18... Qxd5 {[%clk 0:02:14.2]} 19. Nf3 {[%clk 0:02:40.1]}
19... Rfd8 {[%clk 0:02:04.7]} 20. Rac1 {[%clk 0:02:36.1]} 20... Na5 {[%clk
0:01:54.4]} 21. e6 {[%clk 0:02:18.8]} 21... Nxb3 {[%clk 0:01:29.8]} 22. Qxc7
{[%clk 0:02:16.5]} 22... f6 {[%clk 0:01:17]} 23. Qf7+ {[%clk 0:01:51.8]} 23...
Kh8 {[%clk 0:01:16.9]} 24. Rc7 {[%clk 0:01:52]} 24... Rg8 {[%clk 0:01:17.2]} 25.
Bxf6 {[%clk 0:01:45.7]} 25... Nxf6 {[%clk 0:01:14.4]} 26. Qxg6 {[%clk
0:01:45.9]} 26... Qh5 {[%clk 0:01:08.3]} 27. Qc2 {[%clk 0:01:45]} 27... Nc5
{[%clk 0:01:04.5]} 28. Ne5 {[%clk 0:01:45.1]} 28... Rge8 {[%clk 0:00:51.1]} 29.
g4 {[%clk 0:01:28.8]} 29... Qxh3 {[%clk 0:00:48.8]} 30. Qg6 {[%clk 0:01:27.4]}
30... Qh7 {[%clk 0:00:43.3]} 31. Qf7 {[%clk 0:01:18.5]} 31... Nxe6 {[%clk
0:00:36.5]} 32. Ng6+ {[%clk 0:01:18]} 32... Qxg6 {[%clk 0:00:36.9]} 33. Qxg6
{[%clk 0:01:17.3]} 33... Nxc7 {[%clk 0:00:37.3]} 34. Rc1 {[%clk 0:01:10.3]}
34... Ncd5 {[%clk 0:00:35.1]} 35. g5 {[%clk 0:01:10.7]} 35... Nh7 {[%clk
0:00:33.9]} 36. Qh5 {[%clk 0:01:07.3]} 36... Nf4 {[%clk 0:00:29.2]} 37. Qd1
{[%clk 0:00:48.3]} 37... Ne2+ {[%clk 0:00:26.6]} 38. Kg2 {[%clk 0:00:47.7]}
38... Nxc1 {[%clk 0:00:26.8]} 39. Qxc1 {[%clk 0:00:48.3]} 39... Rac8 {[%clk
0:00:24.9]} 40. Qh1 {[%clk 0:00:46.9]} 40... Kg8 {[%clk 0:00:24.9]} 41. g6
{[%clk 0:00:45.9]} 41... Nf6 {[%clk 0:00:25.1]} 42. Qb1 {[%clk 0:00:45.1]} 42...
b5 {[%clk 0:00:23.5]} 43. Qf5 {[%clk 0:00:41.7]} 43... Rc4 {[%clk 0:00:19.6]}
44. Qd3 {[%clk 0:00:27.4]} 44... Rce4 {[%clk 0:00:18.7]} 45. Qb3+ {[%clk
0:00:22.8]} 45... R4e6 {[%clk 0:00:18.6]} 46. Qh3 {[%clk 0:00:20.9]} 46... Kf8
{[%clk 0:00:17.1]} 47. Qh8+ {[%clk 0:00:19.8]} 47... Ng8 {[%clk 0:00:17.3]} 48.
Qh5 {[%clk 0:00:18.6]} 48... Rf6 {[%clk 0:00:16.8]} 49. Qc5+ {[%clk 0:00:17.6]}
49... Ne7 {[%clk 0:00:15.1]} 50. Qa7 {[%clk 0:00:12.1]} 50... Rxg6+ {[%clk
0:00:14.9]} 51. Kf1 {[%clk 0:00:12.5]} 51... Rf6 {[%clk 0:00:15.3]} 52. Qd7
{[%clk 0:00:10.5]} 52... Ng6 {[%clk 0:00:14.6]} 53. Qd4 {[%clk 0:00:09.3]} 53...
Ne5 {[%clk 0:00:14.4]} 54. Qc5+ {[%clk 0:00:08.1]} 54... Re7 {[%clk 0:00:14.8]}
55. Qc8+ {[%clk 0:00:07.8]} 55... Kf7 {[%clk 0:00:14.7]} 56. Qb8 {[%clk
0:00:06]} 56... g5 {[%clk 0:00:14.3]} 57. Qh8 {[%clk 0:00:05]} 57... Ng6 {[%clk
0:00:11.3]} 58. Qh7+ {[%clk 0:00:04.3]} 58... Ke6 {[%clk 0:00:11.5]} 59. Qg8+
{[%clk 0:00:04.7]} 59... Ref7 {[%clk 0:00:11.5]} 60. Qc8+ {[%clk 0:00:05.2]}
60... Ke7 {[%clk 0:00:11]} 61. Qc7+ {[%clk 0:00:04.7]} 61... Kf8 {[%clk
0:00:11.4]} 62. Qd8+ {[%clk 0:00:05.4]} 62... Kg7 {[%clk 0:00:11.5]} 63. Qd3
{[%clk 0:00:06.1]} 63... Rxf2+ {[%clk 0:00:11.2]} 64. Ke1 {[%clk 0:00:05.4]}
64... Rf1+ {[%clk 0:00:11.5]} 65. Qxf1 {[%clk 0:00:04.7]} 65... Rxf1+ {[%clk
0:00:11.5]} 66. Kxf1 {[%clk 0:00:05.3]} 66... Kf6 {[%clk 0:00:12.3]} 67. Ke2
{[%clk 0:00:06.2]} 67... Kf5 {[%clk 0:00:12.7]} 0-1

[Event "Early-Titled-Tuesday-Blitz-September-05-2023"]
[Site "Chess.com"]
[Date "2023.09.05"]
[Round "8"]
[White "Athanasios2"]
[Black "Rsnr"]
[Result "1-0"]
[WhiteElo "2708"]
[BlackElo "2899"]
[TimeControl "180+1"]
[EndTime "9:28:19 PDT"]
[Termination "Athanasios2 won by resignation"]

1. Nf3 {[%clk 0:03:00.9]} 1... d5 {[%clk 0:03:00.5]} 2. c4 {[%clk 0:03:00.5]}
2... d4 {[%clk 0:02:59.8]} 3. b4 {[%clk 0:03:00.3]} 3... g5 {[%clk 0:02:59.6]}
4. Bb2 {[%clk 0:02:56.9]} 4... Bg7 {[%clk 0:02:59.3]} 5. h3 {[%clk 0:02:53.8]}
5... e5 {[%clk 0:02:58.2]} 6. d3 {[%clk 0:02:53.1]} 6... h6 {[%clk 0:02:19]} 7.
Nbd2 {[%clk 0:02:39.6]} 7... Ne7 {[%clk 0:02:09.8]} 8. g3 {[%clk 0:02:36.2]}
8... f5 {[%clk 0:02:07.1]} 9. Bg2 {[%clk 0:02:34.3]} 9... O-O {[%clk 0:02:07.5]}
10. Qc2 {[%clk 0:02:28.7]} 10... a5 {[%clk 0:02:06.4]} 11. b5 {[%clk 0:02:25.3]}
11... c5 {[%clk 0:02:02.4]} 12. bxc6 {[%clk 0:02:23.4]} 12... Nbxc6 {[%clk
0:01:57.6]} 13. Ba3 {[%clk 0:02:17.3]} 13... Re8 {[%clk 0:01:48]} 14. Rb1 {[%clk
0:02:14.8]} 14... Ng6 {[%clk 0:01:48]} 15. Rb5 {[%clk 0:01:49.1]} 15... Qf6
{[%clk 0:01:40]} 16. Nh2 {[%clk 0:01:41.1]} 16... Kh7 {[%clk 0:01:37.4]} 17. O-O
{[%clk 0:01:39.8]} 17... h5 {[%clk 0:01:27.5]} 18. Rfb1 {[%clk 0:01:27.5]} 18...
h4 {[%clk 0:01:27.7]} 19. g4 {[%clk 0:01:21.4]} 19... Nf4 {[%clk 0:01:27.6]} 20.
e3 {[%clk 0:01:15.5]} 20... Ne2+ {[%clk 0:01:19.2]} 21. Kh1 {[%clk 0:01:02.8]}
21... Nc3 {[%clk 0:01:20]} 22. gxf5 {[%clk 0:00:54.3]} 22... Bxf5 {[%clk
0:00:58.8]} 23. Rxb7 {[%clk 0:00:47.2]} 23... Nxb1 {[%clk 0:00:58.7]} 24. Rxb1
{[%clk 0:00:40.1]} 24... Rab8 {[%clk 0:00:58.8]} 25. Ne4 {[%clk 0:00:35.4]}
25... Qg6 {[%clk 0:00:52.7]} 26. Rg1 {[%clk 0:00:32]} 26... Bh6 {[%clk 0:00:41]}
27. Qd2 {[%clk 0:00:28.5]} 27... dxe3 {[%clk 0:00:35.6]} 28. fxe3 {[%clk
0:00:28]} 28... Rbd8 {[%clk 0:00:36]} 29. Qe2 {[%clk 0:00:27.1]} 29... Nb4
{[%clk 0:00:31.1]} 30. Bxb4 {[%clk 0:00:24.4]} 30... axb4 {[%clk 0:00:31.7]} 31.
Rf1 {[%clk 0:00:25.1]} 31... Rf8 {[%clk 0:00:27.6]} 32. Rb1 {[%clk 0:00:21.1]}
32... Rb8 {[%clk 0:00:26.3]} 33. Qd2 {[%clk 0:00:17.5]} 33... g4 {[%clk
0:00:18.7]} 34. hxg4 {[%clk 0:00:16.6]} 34... Bxg4 {[%clk 0:00:19.3]} 35. Nf2
{[%clk 0:00:10.3]} 35... Bf5 {[%clk 0:00:14.9]} 36. Rg1 {[%clk 0:00:08]} 36...
Qb6 {[%clk 0:00:10.2]} 37. Nhg4 {[%clk 0:00:06.8]} 37... Bg5 {[%clk 0:00:07.3]}
38. Be4 {[%clk 0:00:06.1]} 38... Qg6 {[%clk 0:00:04.1]} 39. Bxf5 {[%clk
0:00:05.7]} 39... Qxf5 {[%clk 0:00:05]} 40. Ne4 {[%clk 0:00:06.6]} 40... Be7
{[%clk 0:00:05.6]} 41. Qh2 {[%clk 0:00:05.5]} 41... Qf3+ {[%clk 0:00:05.9]} 42.
Qg2 {[%clk 0:00:05]} 42... Qxg2+ {[%clk 0:00:05.8]} 43. Rxg2 {[%clk 0:00:05.9]}
43... Rf5 {[%clk 0:00:06.5]} 44. Rb2 {[%clk 0:00:04.5]} 44... Ra8 {[%clk
0:00:06.3]} 45. Kh2 {[%clk 0:00:04.4]} 45... Ra3 {[%clk 0:00:06.4]} 46. Rd2
{[%clk 0:00:04.3]} 46... Rf3 {[%clk 0:00:05.3]} 47. Kg2 {[%clk 0:00:04]} 47...
Rf5 {[%clk 0:00:05]} 48. Kh3 {[%clk 0:00:02.3]} 48... Kg6 {[%clk 0:00:05]} 49.
Kg2 {[%clk 0:00:02.9]} 49... Kf7 {[%clk 0:00:05]} 50. Nh6+ {[%clk 0:00:02.4]}
50... Ke6 {[%clk 0:00:05.3]} 51. Nxf5 {[%clk 0:00:03.3]} 51... Kxf5 {[%clk
0:00:05.3]} 52. Kf3 {[%clk 0:00:04]} 52... Ke6 {[%clk 0:00:03.7]} 53. c5 {[%clk
0:00:04.3]} 53... Kd5 {[%clk 0:00:03.5]} 54. Rc2 {[%clk 0:00:05.1]} 54... Rxd3
{[%clk 0:00:03.9]} 55. c6 {[%clk 0:00:04.9]} 55... Bd8 {[%clk 0:00:03.4]} 56. c7
{[%clk 0:00:05.3]} 56... Bxc7 {[%clk 0:00:04.3]} 57. Rxc7 {[%clk 0:00:05.9]}
57... Ra3 {[%clk 0:00:03.5]} 58. Rc5+ {[%clk 0:00:05.5]} 58... Ke6 {[%clk
0:00:03.9]} 59. Rb5 {[%clk 0:00:06.1]} 59... Rxa2 {[%clk 0:00:03.9]} 60. Rxb4
{[%clk 0:00:06.8]} 60... h3 {[%clk 0:00:04.7]} 61. Rb6+ {[%clk 0:00:07.3]} 61...
Kd5 {[%clk 0:00:03.7]} 62. Rd6+ {[%clk 0:00:07.7]} 62... Kc4 {[%clk 0:00:04.3]}
63. Rh6 {[%clk 0:00:08.3]} 63... h2 {[%clk 0:00:04.4]} 64. Nf2 {[%clk 0:00:09]}
64... e4+ {[%clk 0:00:03.7]} 65. Kg3 {[%clk 0:00:07.4]} 65... Re2 {[%clk
0:00:03.5]} 66. Ng4 {[%clk 0:00:06.3]} 66... Kd3 {[%clk 0:00:03.4]} 67. Kf4
{[%clk 0:00:05.2]} 67... Rg2 {[%clk 0:00:03.4]} 68. Nxh2 {[%clk 0:00:04.9]}
68... Rf2+ {[%clk 0:00:03.2]} 69. Kg3 {[%clk 0:00:05.4]} 69... Kxe3 {[%clk
0:00:04.1]} 70. Ng4+ {[%clk 0:00:05.8]} 1-0

[Event "Early-Titled-Tuesday-Blitz-September-05-2023"]
[Site "Chess.com"]
[Date "2023.09.05"]
[Round "8"]
[White "WPWPWP-2015"]
[Black "FREDERICKtheMATE"]
[Result "1/2-1/2"]
[WhiteElo "2555"]
[BlackElo "2536"]
[TimeControl "180+1"]
[EndTime "9:28:27 PDT"]
[Termination "Game drawn - insufficient material"]

1. e4 {[%clk 0:03:00.9]} 1... c5 {[%clk 0:03:00.1]} 2. Nf3 {[%clk 0:03:00.4]}
2... Nc6 {[%clk 0:03:00.6]} 3. d4 {[%clk 0:03:00.3]} 3... cxd4 {[%clk
0:03:00.2]} 4. Nxd4 {[%clk 0:03:01.2]} 4... Nf6 {[%clk 0:02:59]} 5. Nc3 {[%clk
0:03:01.3]} 5... e5 {[%clk 0:02:59.2]} 6. Ndb5 {[%clk 0:03:00.8]} 6... d6 {[%clk
0:02:59.3]} 7. Bg5 {[%clk 0:02:58.6]} 7... a6 {[%clk 0:02:58.3]} 8. Na3 {[%clk
0:02:56.2]} 8... b5 {[%clk 0:02:58.5]} 9. Bxf6 {[%clk 0:02:56.2]} 9... gxf6
{[%clk 0:02:59]} 10. Nd5 {[%clk 0:02:56.1]} 10... Bg7 {[%clk 0:02:59.1]} 11. c3
{[%clk 0:02:55.7]} 11... O-O {[%clk 0:02:58.9]} 12. Bd3 {[%clk 0:02:55.4]} 12...
Ne7 {[%clk 0:02:57.8]} 13. Nxe7+ {[%clk 0:02:51.6]} 13... Qxe7 {[%clk
0:02:58.7]} 14. Qh5 {[%clk 0:02:48]} 14... f5 {[%clk 0:02:54.1]} 15. exf5 {[%clk
0:02:45.4]} 15... e4 {[%clk 0:02:53.4]} 16. Bc2 {[%clk 0:02:43.4]} 16... b4
{[%clk 0:02:48.2]} 17. Nb1 {[%clk 0:02:37.1]} 17... bxc3 {[%clk 0:02:33]} 18.
Nxc3 {[%clk 0:02:36.2]} 18... Rb8 {[%clk 0:02:32.4]} 19. O-O-O {[%clk
0:02:13.1]} 19... Bb7 {[%clk 0:02:24.5]} 20. Qg4 {[%clk 0:01:46.6]} 20... d5
{[%clk 0:02:21.6]} 21. Bb3 {[%clk 0:01:37.5]} 21... d4 {[%clk 0:02:17.6]} 22.
Rxd4 {[%clk 0:01:27.7]} 22... h5 {[%clk 0:02:10.9]} 23. Qg3 {[%clk 0:01:26.5]}
23... Kh8 {[%clk 0:01:52.2]} 24. f6 {[%clk 0:00:57.5]} 24... Qxf6 {[%clk
0:01:37.8]} 25. Rd6 {[%clk 0:00:52.4]} 25... Qf5 {[%clk 0:01:35.7]} 26. Rhd1
{[%clk 0:00:35.7]} 26... Rfc8 {[%clk 0:01:31.5]} 27. Bc2 {[%clk 0:00:33.2]}
27... Ba8 {[%clk 0:01:24.2]} 28. R1d4 {[%clk 0:00:20.5]} 28... Kh7 {[%clk
0:00:42.6]} 29. Qe3 {[%clk 0:00:13.3]} 29... Bxd4 {[%clk 0:00:34.4]} 30. Qh6+
{[%clk 0:00:13]} 30... Kg8 {[%clk 0:00:33]} 31. Rxd4 {[%clk 0:00:12.6]} 31...
Rc6 {[%clk 0:00:26.2]} 32. Qe3 {[%clk 0:00:10.5]} 32... Re6 {[%clk 0:00:26.3]}
33. Bb3 {[%clk 0:00:08.7]} 33... Rg6 {[%clk 0:00:24.1]} 34. Nd5 {[%clk 0:00:07]}
34... Qg5 {[%clk 0:00:21.3]} 35. Qxg5 {[%clk 0:00:06.6]} 35... Rxg5 {[%clk
0:00:22.2]} 36. g3 {[%clk 0:00:05.1]} 36... Bxd5 {[%clk 0:00:19.8]} 37. Bxd5
{[%clk 0:00:05.3]} 37... Re8 {[%clk 0:00:12.7]} 38. Bxe4 {[%clk 0:00:05.1]}
38... Rc5+ {[%clk 0:00:12.7]} 39. Kd2 {[%clk 0:00:04.6]} 39... Kg7 {[%clk
0:00:13.2]} 40. b3 {[%clk 0:00:04.6]} 40... Kf6 {[%clk 0:00:13.3]} 41. f3 {[%clk
0:00:04.4]} 41... Re6 {[%clk 0:00:12.3]} 42. Rd7 {[%clk 0:00:04.3]} 42... Re7
{[%clk 0:00:10.8]} 43. Rd6+ {[%clk 0:00:04.3]} 43... Re6 {[%clk 0:00:10.7]} 44.
Rd7 {[%clk 0:00:04.9]} 44... Ree5 {[%clk 0:00:09.6]} 45. Rd8 {[%clk 0:00:03.8]}
45... Ke7 {[%clk 0:00:08.8]} 46. Rh8 {[%clk 0:00:03.2]} 46... Re6 {[%clk
0:00:08.9]} 47. Rh7 {[%clk 0:00:02.6]} 47... Rd6+ {[%clk 0:00:08.7]} 48. Ke3
{[%clk 0:00:02.9]} 48... Rc3+ {[%clk 0:00:08.5]} 49. Kf4 {[%clk 0:00:03]} 49...
Rf6+ {[%clk 0:00:08.6]} 50. Ke5 {[%clk 0:00:02.2]} 50... Re6+ {[%clk 0:00:07.4]}
51. Kf4 {[%clk 0:00:02.4]} 51... Rc5 {[%clk 0:00:07]} 52. Rh8 {[%clk 0:00:02]}
52... Rf6+ {[%clk 0:00:07]} 53. Ke3 {[%clk 0:00:02.1]} 53... Rd6 {[%clk
0:00:06.6]} 54. Ra8 {[%clk 0:00:01.7]} 54... Kf6 {[%clk 0:00:06.4]} 55. Ra7
{[%clk 0:00:01.6]} 55... Kg7 {[%clk 0:00:06.5]} 56. g4 {[%clk 0:00:01.9]} 56...
hxg4 {[%clk 0:00:05.9]} 57. fxg4 {[%clk 0:00:02.4]} 57... Rd1 {[%clk 0:00:05.3]}
58. Bf5 {[%clk 0:00:02.3]} 58... Re1+ {[%clk 0:00:05.1]} 59. Kd4 {[%clk
0:00:02.7]} 59... Rc6 {[%clk 0:00:04.4]} 60. Rb7 {[%clk 0:00:02.6]} 60... Rh6
{[%clk 0:00:04.9]} 61. h3 {[%clk 0:00:02.3]} 61... Rxh3 {[%clk 0:00:05]} 62. Rb6
{[%clk 0:00:02.6]} 62... Rh6 {[%clk 0:00:04.9]} 63. Rb7 {[%clk 0:00:02.3]} 63...
Rd6+ {[%clk 0:00:04.4]} 64. Kc5 {[%clk 0:00:02]} 64... Rf6 {[%clk 0:00:04.6]}
65. a4 {[%clk 0:00:02.2]} 65... Rc1+ {[%clk 0:00:05.5]} 66. Kb4 {[%clk
0:00:02.4]} 66... Rf1 {[%clk 0:00:05.2]} 67. a5 {[%clk 0:00:02.8]} 67... R1xf5
{[%clk 0:00:05.1]} 68. gxf5 {[%clk 0:00:02.7]} 68... Rxf5 {[%clk 0:00:06]} 69.
Rb6 {[%clk 0:00:03.1]} 69... Rf6 {[%clk 0:00:06.3]} 70. Kc5 {[%clk 0:00:03]}
70... Rg6 {[%clk 0:00:06.4]} 71. b4 {[%clk 0:00:03.5]} 71... f5 {[%clk
0:00:06.3]} 72. b5 {[%clk 0:00:02.9]} 72... axb5 {[%clk 0:00:06.1]} 73. a6
{[%clk 0:00:03.2]} 73... Rg1 {[%clk 0:00:03]} 74. Kxb5 {[%clk 0:00:02.9]} 74...
Ra1 {[%clk 0:00:03.3]} 75. Kc6 {[%clk 0:00:02.5]} 75... f4 {[%clk 0:00:03.4]}
76. Kb7 {[%clk 0:00:02.3]} 76... f3 {[%clk 0:00:03.7]} 77. Rb4 {[%clk
0:00:02.5]} 77... f2 {[%clk 0:00:03.3]} 78. Rg4+ {[%clk 0:00:02.7]} 78... Kh6
{[%clk 0:00:03]} 79. Rf4 {[%clk 0:00:03.1]} 79... f1=Q {[%clk 0:00:03]} 80. Rxf1
{[%clk 0:00:03.2]} 80... Rxf1 {[%clk 0:00:03.8]} 81. a7 {[%clk 0:00:03.7]} 81...
Rb1+ {[%clk 0:00:04.6]} 82. Kc7 {[%clk 0:00:03.7]} 82... Ra1 {[%clk 0:00:05.5]}
83. Kb7 {[%clk 0:00:04.2]} 83... Rxa7+ {[%clk 0:00:06]} 84. Kxa7 {[%clk
0:00:04.5]} 1/2-1/2